Cogmind - Beta 17.1 @@@ ROGUE MODE // 2026.08.24 @ 23:48:07 Player: Infomantis Result: Destroyed by J5-7IY(j) with Overtuned Pulse Rifle Performance ------------- Evolutions (0) 0 Regions Visited (4) 800 Robots Destroyed (19) 95 Value Destroyed (370) 370 Prototype IDs (33) 660 Alien Tech Used (0) 0 Bonus (3020) 3020 TOTAL SCORE: 4945 Bonus ------- Follower Combat Kills 253 Delivered SUBCON Basin 2000 Registered with UFD 300 Met Optimus in HQ 500 Friendly Fire -33 Cogmind --------- Core Integrity 0/250 Matter 271/300 Energy 170/180 System Corruption 0% Temperature Hot (248) Movement Treading (160) Location -7/Scraptown Parts ------- > --- POWER (1) -------- Meta Core > --- PROPULSION (2+1) - Spiked Treads Overtuned Medium Treads (+) > --- UTILITY (2) ------ Tech Extrapolator > --- WEAPON (2+1) ----- (None) > --- INVENTORY (5) ---- A0-MCA's Component Scanner Overtuned Quantum Rifle Rocket Launcher Remote Datajack Multitool Peak State ------------ > --- POWER ------------ Meta Core > --- PROPULSION ------- Spiked Treads Spiked Treads Overtuned Medium Treads > --- UTILITY ---------- Large Storage Unit Hardened Light Armor Plating Tech Extrapolator > --- WEAPON ----------- Mini Grenade Launcher LU-1G1's Laser Shovel > --- INVENTORY -------- Improved Treads Compact Wheel Xenon Bombardment Thruster Experimental Sensor Array Improved Medium Armor Plating A0-MCA's Component Scanner Overtuned Quantum Rifle Subdweller Beam Cannon Advanced Assault Cannon Rocket Launcher Remote Datajack CPS Tube Multitool Chainsword DRS Beacon [Rating: 46] Favorites ----------- Power Meta Core Engine Light Ion Engine Power Core Meta Core Propulsion Spiked Treads Treads Spiked Treads Wheel Compact Wheel Utility Large Storage Unit Device Structural Scanner Storage Large Storage Unit Processor Tech Extrapolator Protection Hardened Light Armor Plating Weapon Assault Rifle Energy Gun Medium Laser Energy Cannon Subdweller Beam Cannon Ballistic Gun Assault Rifle Ballistic Cannon Advanced Assault Cannon Launcher Mini Grenade Launcher Special Weapon Multitool Slashing Weapon Chainsword Build | -11 -10 -10 -7 -7 ------- Run | Yrd Mat Sub Rec Scr Slots Evolved . | . . . . . Power . | . . . . . Propulsion . | . . . . . Utility . | . . . . . Weapon . | . . . . . Parts Attached 37 | 7 3 16 . 11 Power 3 | 1 . 2 . . Engine 2 | 1 . 1 . . Core 1 | . . 1 . . Reactor . | . . . . . Propulsion 8 | 2 . 4 . 2 Treads 7 | 2 . 4 . 1 Leg . | . . . . . Wheel 1 | . . . . 1 Hover . | . . . . . Flight . | . . . . . Utility 11 | 2 1 5 . 3 Device 7 | 1 . 5 . 1 Storage 2 | 1 1 . . . Processor 1 | . . . . 1 Hackware . | . . . . . Protection 1 | . . . . 1 Artifact . | . . . . . Weapon 15 | 2 2 5 . 6 Energy Gun 2 | 1 . 1 . . Energy Cannon 1 | . . 1 . . Ballistic Gun 4 | 1 1 2 . . Ballistic Cannon 1 | . . . . 1 Launcher 2 | . . . . 2 Special Weapon 4 | . 1 1 . 2 Impact Weapon . | . . . . . Slashing Weapon 1 | . . . . 1 Piercing Weapon . | . . . . . Special Melee Weapon . | . . . . . Unidentified Prototypes 2 | . . 1 . 1 Parts Lost 6 | . . 2 . 4 Power . | . . . . . Propulsion 1 | . . . . 1 Utility 2 | . . 1 . 1 Weapon 3 | . . 1 . 2 Highest Loss Streak 4 | . . 1 . 4 To Critical Strikes . | . . . . . Average Backups 11 | 3 8 13 4 12 Power . | . 1 1 . . Propulsion 2 | . 1 2 . 2 Utility 5 | . 4 5 2 5 Weapon 2 | 1 2 3 . 2 Tool/Special . | . . . . . Unused Backups 19 | . 1 8 . 10 Power 1 | . . 1 . . Propulsion 5 | . . 2 . 3 Utility 8 | . . 3 . 5 Weapon 3 | . 1 1 . 1 Tool/Special 2 | . . 1 . 1 Average Slot Usage (%) 83 | . 100 98 70 68 Engine 6 | . 14 13 . . Core 5 | . . . 10 10 Treads 24 | . 28 27 20 21 Device 8 | . 14 13 10 1 Storage 11 | . 14 13 10 10 Processor 1 | . . . . 4 Energy Gun 2 | . 14 4 . . Energy Cannon 4 | . . 3 10 5 Ballistic Gun 8 | . 14 16 . . Special Weapon 4 | . . 3 10 5 Slashing Weapon 1 | . . . . 4 Peak Build Rating 46 | 7 8 43 43 46 Average Rating 22 | 5 7 13 32 32 On Entrance 17 | . 7 8 43 29 Avg Prop Armor Cover (%) 10 | . . . . 10 Naked Turns . | . . . . . Heaviest Build 38 | 15 30 37 37 38 Greatest Support 45 | 40 40 40 40 45 Greatest Overweight (x) 2 | . . . . 2 Average Overweight (x) . | . . . . . Largest Inventory Capacity 15 | 8 15 15 15 15 Average Capacity 14 | 7 9 15 15 15 Most Carried 15 | 6 15 15 15 15 Average Carried 13 | 3 8 14 10 13 Final Capacity 15 | 8 15 15 15 5 Final Carried 15 | 6 15 15 11 5 Class Distribution -------------------- 100% | Mutant Dominant Class ---------------- Mutant | -10/Materials Mutant | -10/Subcaves Mutant | -7/Recycling Mutant | -7/Scraptown Resources | -11 -10 -10 -7 -7 ----------- Run | Yrd Mat Sub Rec Scr Matter Collected 1353 | 321 185 696 56 95 Remotely . | . . . . . Salvage Created 733 | 202 331 200 . . Parts 53 | 23 18 12 . . Haulers Intercepted 2 | . 2 . . . Recyclers Shooed . | . . . . . Parts Field Recycled . | . . . . . Retrieved Matter . | . . . . . Parts Self-Destructed 13 | . . 13 . . Prevented . | . . . . . Parts Restored 2 | . . . . 2 Broken 2 | . . . . 2 Kills | -11 -10 -10 -7 -7 ------- Run | Yrd Mat Sub Rec Scr Combat Hostiles Destroyed 10 | . 7 3 . . Guns 10 | . 7 3 . . Classes Destroyed 8 | 2 4 2 . . Builder 1 | . 1 . . . Tunneler 5 | 5 . . . . Hauler 2 | . 2 . . . Recycler 1 | 1 . . . . Swarmer 3 | . 3 . . . Grunt 6 | . 4 2 . . Artisan 2 | . . 2 . . Subdweller 1 | . . 1 . . Best Kill Streak 4 | 4 3 2 . . Combat Bots Only 3 | . 3 2 . . Max Kills in Single Turn 2 | 1 2 1 . . Gunslinging . | . . . . . Exploded . | . . . . . Melee . | . . . . . Uniques/NPCs Destroyed . | . . . . . Combat | -11 -10 -10 -7 -7 -------- Run | Yrd Mat Sub Rec Scr Hostile Shots Fired 122 | . 25 30 . 67 Missed 40 | . 9 14 . 17 Hits 82 | . 16 16 . 50 Melee 3 | . . . . 3 Projectile 79 | . 16 16 . 47 Critical Strikes 5 | . 1 . . 4 Damage Taken 1563 | . 224 409 . 930 Core 257 | . 41 18 . 198 Absorbed by Shields . | . . . . . Core Remaining (%) 100 | 100 . . . . Volleys Fired 115 | 17 25 70 . 3 Largest 2 | 2 2 2 . 1 Hottest 100 | 70 100 100 . 40 Shots Fired 172 | 34 49 86 . 3 Gun 115 | 34 48 33 . . Cannon 21 | . . 19 . 2 Launcher . | . . . . . Special 36 | . 1 34 . 1 Kinetic 61 | 17 24 18 . 2 Thermal 110 | 17 25 68 . . Explosive . | . . . . . Electromagnetic . | . . . . . Robot Hit Streak 11 | 4 8 10 . 11 Robot Miss Streak 2 | 2 2 1 . . Penetration Max . | . . . . . Secondary Targets . | . . . . . Shots Hit Robots 74 | 17 32 24 . 1 Core Hits 32 | 7 15 10 . . Critical Kills . | . . . . . Critical Parts Destroyed . | . . . . . Critical Strikes 5 | 2 2 1 . . Burn 5 | 2 2 1 . . Melee Attacks . | . . . . . Impact . | . . . . . Slashing . | . . . . . Piercing . | . . . . . Sneak Attacks . | . . . . . Combat Hostiles . | . . . . . Follow-up Attacks . | . . . . . Damage Inflicted 951 | 220 419 308 3 1 Guns 941 | 220 413 308 . . Cannons . | . . . . . Explosions . | . . . . . Melee . | . . . . . Ramming 10 | . 6 . 3 1 Kinetic 517 | 122 213 182 . . Thermal 424 | 98 200 126 . . Explosive . | . . . . . Electromagnetic . | . . . . . Impact . | . . . . . Slashing . | . . . . . Piercing . | . . . . . Highest Corruption . | . . . . . Average Corruption . | . . . . . Corruption Purged . | . . . . . Corruption Blocked . | . . . . . Overload Shots . | . . . . . Overflow Damage . | . . . . . Projectiles . | . . . . . Explosions . | . . . . . Melee . | . . . . . Knockbacks . | . . . . . Impact . | . . . . . Kinetic . | . . . . . Secondary . | . . . . . Self-Inflicted Damage . | . . . . . Shots . | . . . . . Rammed 3 | . 1 . 1 1 Targets Rammed 4 | . 2 . 1 1 Kicked . | . . . . . Crushed 1 | . 1 . . . Highest Temperature 224 | 117 195 . . 224 Average Temperature 53 | 48 56 . . 51 Received Heat Transfer 744 | . 129 84 . 531 Siege Activations . | . . . . . Martial Activations . | . . . . . Shielding Activations . | . . . . . Robots Disrupted . | . . . . . Combat Hostiles . | . . . . . Robots Corrupted . | . . . . . Combat Hostiles . | . . . . . Parts Fried . | . . . . . Impact Corruptions . | . . . . . Robots Melted . | . . . . . Combat Hostiles . | . . . . . Parts Melted 2 | . 2 . . . Heat Transferred 1628 | 444 740 444 . . Parts Sabotaged . | . . . . . Parts Stolen . | . . . . . Parts Stripped . | . . . . . Power Chain Reactions . | . . . . . Alert | -11 -10 -10 -7 -7 ------- Run | Yrd Mat Sub Rec Scr Maximum Alert Level . | . . . . . Low Security (%) 100 | 100 100 . 100 . Level 1 . | . . . . . Level 2 . | . . . . . Level 3 . | . . . . . Level 4 . | . . . . . Level 5 . | . . . . . High Security . | . . . . . Max Security . | . . . . . Peak Influence 97 | 10 97 . 78 . Initial . | . . . . . Average 15 | 1 25 . 11 . Influence Increases 584 | 30 219 120 215 . Destroy 0b10 Robot/C 240 | . 140 80 20 . Destroy 0b10 Robot/NC 45 | 30 15 . . . Destroy Leader 54 | . 34 20 . . Allied During Kill 28 | . . 20 8 . Successful Hack 7 | . . . 7 . Select Force Hacks 180 | . . . 180 . Disable Machine 30 | . 30 . . . Influence Decreases 584 | 30 203 136 215 . Entered New Map 8 | . . 8 . . Time Decay 556 | 30 203 118 205 . Lost Part 10 | . . 10 . . Lost Ally 10 | . . . 10 . Squads Dispatched 2 | . 2 . . . Investigation 1 | . 1 . . . Extermination . | . . . . . Reinforcement 1 | . 1 . . . Assault . | . . . . . Garrison . | . . . . . Intercept . | . . . . . Searches Triggered . | . . . . . Construction Impeded . | . . . . . Haulers Reinforced . | . . . . . Active Scanning Responses . | . . . . . Cargo Convoy Interrupts . | . . . . . Stealth | -11 -10 -10 -7 -7 --------- Run | Yrd Mat Sub Rec Scr Distress Signals 2 | . 1 . 1 . Communications Jammed . | . . . . . Distress Signals . | . . . . . Times Spotted 57 | . 13 14 . 30 Peak Tracking Total 23 | . 4 2 . 23 Tactical Retreats 1 | . . . . 1 Traps | -11 -10 -10 -7 -7 ------- Run | Yrd Mat Sub Rec Scr Traps Triggered 2 | . . 2 . . Indirectly . | . . . . . Trap Hack Attempts . | . . . . . Triggered . | . . . . . Disarmed . | . . . . . Reprogrammed . | . . . . . Reused . | . . . . . Traps Extracted . | . . . . . Installed . | . . . . . Triggered . | . . . . . Machines | -11 -10 -10 -7 -7 ---------- Run | Yrd Mat Sub Rec Scr Machines Disabled 10 | . 2 1 . 7 Max in Single Turn 1 | . 1 1 . 1 Machines Repaired . | . . . . . Machines Dismantled . | . . . . . Machines Sabotaged . | . . . . . Overloaded Fab Kills . | . . . . . Hacking | -11 -10 -10 -7 -7 --------- Run | Yrd Mat Sub Rec Scr Machines Accessed 19 | . 2 4 9 4 Terminals 5 | . 2 . 3 . Fabricators . | . . . . . Repair Stations . | . . . . . Recycling Units 6 | . . . 6 . Scanalyzers . | . . . . . Garrison Access . | . . . . . Total Hacks 32 | . 7 8 12 5 Successful 22 | . 2 8 7 5 Failed 10 | . 5 . 5 . Catastrophic 5 | . 2 . 3 . Database Lockouts . | . . . . . Manual 15 | . 6 . 9 . Terminals 13 | . 7 . 6 . Fabricators . | . . . . . Repair Stations . | . . . . . Recycling Units 6 | . . . 6 . Scanalyzers . | . . . . . Garrison Access . | . . . . . Terminal Hacks 16 | . 2 8 1 5 Record 9 | . . 5 . 4 Part Schematic 2 | . 1 . 1 . Open Door 1 | . . 1 . . Maintenance Status 1 | . 1 . . . Proto ID Catalog 2 | . . 1 . 1 Release Object 1 | . . 1 . . Fabricator Hacks . | . . . . . Repair Station Hacks . | . . . . . Recycling Unit Hacks . | . . . . . Scanalyzer . | . . . . . Garrison Access Hacks . | . . . . . Unauthorized Hacks 6 | . . . 6 . Terminals . | . . . . . Fabricators . | . . . . . Repair Stations . | . . . . . Recycling Units 6 | . . . 6 . Tunnel 6 | . . . 6 . Scanalyzers . | . . . . . Garrison Access . | . . . . . Data Cores Recovered . | . . . . . Used . | . . . . . Hacking Detections 3 | . 2 . 1 . Full Trace Events 2 | . 2 . . . Feedback Events . | . . . . . Feedback Blocked . | . . . . . Robot Schematics Acquired . | . . . . . Robots Built . | . . . . . Authchips . | . . . . . Time . | . . . . . Total Robot Build Rating . | . . . . . Part Schematics Acquired 8 | . 1 . 1 6 Parts Built . | . . . . . Authchips . | . . . . . Time . | . . . . . Total Part Build Rating . | . . . . . Part Studies Acquired . | . . . . . Parts Repaired . | . . . . . Time . | . . . . . Parts Recycled . | . . . . . Recycled Matter . | . . . . . Retrieved Matter . | . . . . . Retrieved Components . | . . . . . Parts Scanalyzed . | . . . . . Part Schematics Acquired . | . . . . . Parts Damaged . | . . . . . Bothacking | -11 -10 -10 -7 -7 ------------ Run | Yrd Mat Sub Rec Scr Used RIF Installer . | . . . . . Robots Hacked 1 | . . . . 1 Non-combat . | . . . . . Combat 1 | . . . . 1 Robot Hacks Applied 1 | . . . . 1 parse_system 1 | . . . . 1 Relay Couplers Released . | . . . . . Fabnet Peak Effective % . | . . . . . Robots Rewired . | . . . . . Allies Hacked . | . . . . . Hacks Repelled . | . . . . . Allies | -11 -10 -10 -7 -7 -------- Run | Yrd Mat Sub Rec Scr Total Allies 9 | . . 9 . . Largest Group 8 | . . 8 8 7 Highest-Rated Group 152 | . . 152 152 133 Highest-Rated Ally 19 | . . 19 19 19 Total Orders . | . . . . . Ally Attacks 72 | . . 16 6 50 Total Damage 1016 | . . 245 115 656 Kills 10 | . . 3 1 6 Allies Corrupted . | . . . . . Allies Melted 4 | . . . . 4 Intel | -11 -10 -10 -7 -7 ------- Run | Yrd Mat Sub Rec Scr Active Infowar (turns) 5127 | 112 849 4166 . . Sensors 54 | . . 54 . . Structural 3288 | . . 3288 . . Seismic 1785 | 112 849 824 . . Robot Analysis Total . | . . . . . Derelict Logs Recovered 5 | . . 2 . 3 Drone Launches . | . . . . . Drone Recoveries . | . . . . . Exploration | -11 -10 -10 -7 -7 ------------- Run | Yrd Mat Sub Rec Scr Turns Passed 12046 | 220 849 5065 1114 4798 Spaces Moved 6713 | 95 463 2917 668 2570 Core 3 | 3 . . . . Treads 6630 | 92 463 2917 668 2490 Legs . | . . . . . Wheels 80 | . . . . 80 Hover . | . . . . . Flight . | . . . . . Fastest Speed 50 | 50 160 160 160 115 Average Speed 159 | 156 160 160 160 159 Slowest Speed 160 | 160 160 160 160 160 Overloaded Moves . | . . . . . Propulsion Burnouts . | . . . . . Robots Hopped . | . . . . . Potential Cave-ins . | . . . . . Cave-ins Triggered . | . . . . . Exploration Rate (%) 68 | 5 65 96 82 94 Regions Visited 4 Branch Regions 3 Pre-discovered Areas 8 | . . 2 6 . Known Exits Taken . | . . . . . Unknown Exits Taken 4 | 1 1 1 1 . Scrap Searched 13 | . . 11 . 2 Spaces Dug 31 | . . 8 . 23 Terrain Destroyed 30 | . . 9 . 21 Melee . | . . . . . Projectile 9 | . . 9 . . AOE . | . . . . . Terrain Rammed . | . . . . . Walls Destroyed . | . . . . . Machines Disabled . | . . . . . Actions | -11 -10 -10 -7 -7 --------- Run | Yrd Mat Sub Rec Scr Total 7790 | 129 520 3149 712 3280 Wait 792 | 5 14 74 28 671 Move 6709 | 94 462 2916 667 2570 Hop . | . . . . . Pick Up 49 | 6 10 10 12 11 Fast Attach 11 | 7 . 2 . 2 Attach 10 | . . 4 . 6 Detach 4 | . . . . 4 Swap 55 | . 4 46 . 5 Drop 39 | . 3 27 2 7 Fire 115 | 17 25 70 . 3 Melee . | . . . . . Ram 1 | . . . . 1 Kick . | . . . . . Crush 3 | . 2 . 1 . Escape Stasis . | . . . . . Rewire . | . . . . . Trap . | . . . . . Miscellaneous 2 | . . . 2 . Route ------- -11/Scrapyard -10/Materials (discovered 3 exits: [*Mat x2] / *Sub) -10/Subcaves (discovered 3 exits: [*Mat x2] / *Rec) -7/Recycling (discovered 2 exits: [*Fac] / *Scr) -7/Scraptown (discovered 2 exits: [*Fac x2]) History --------- Turn | Location | Event 11 | -11/Scrapyard | Discovered new exit (range 14) 221 | -11/Scrapyard | Entered Materials 316 | -10/Materials | Build established: Mutant 665 | -10/Materials | Discovered new exit (range 9) 756 | -10/Materials | Discovered new exit (range 16) 1045 | -10/Materials | Discovered new exit (range 12) 1070 | -10/Materials | Entered Subcaves 1096 | -10/Subcaves | Shifting Twisted Machinery released Riot Gun 1099 | -10/Subcaves | Shifting Twisted Machinery released Spk. Treads 1823 | -10/Subcaves | Visited triangular shrine 1833 | -10/Subcaves | Found Prototype Device 1833 | -10/Subcaves | Identified V3-11A's Pendant 1838 | -10/Subcaves | Befriended Subdweller 1950 | -10/Subcaves | Visited 4L-MR0's lab 1970 | -10/Subcaves | Found Meta Core 2273 | -10/Subcaves | Befriended Subdweller 2769 | -10/Subcaves | Befriended Subdweller 2769 | -10/Subcaves | Befriended Subdweller 2769 | -10/Subcaves | Befriended Subdweller 2867 | -10/Subcaves | A swath of the cavern ceiling suddenly collapsed 3003 | -10/Subcaves | Befriended Subdweller 3003 | -10/Subcaves | Befriended Subdweller 3085 | -10/Subcaves | Befriended Subdweller 3312 | -10/Subcaves | Discovered new exit (range 8) 3326 | -10/Subcaves | Shifting Twisted Machinery released Sub. Machine Gun 3329 | -10/Subcaves | Shifting Twisted Machinery released Riot Gun 3334 | -10/Subcaves | Discovered new exit (range 8) 3937 | -10/Subcaves | Befriended Subdweller 4776 | -10/Subcaves | A swath of the cavern ceiling suddenly collapsed 4872 | -10/Subcaves | Visited Clippyterm 4877 | -10/Subcaves | Learned location of Section 7 (-2) 4877 | -10/Subcaves | Learned Research machine intel 5038 | -10/Subcaves | Discovered new exit (range 6) 5550 | -10/Subcaves | Disturbed a concealed Subdweller 5855 | -10/Subcaves | Attached Meta Core, gained temporary slots: Propulsion, Utility, Weapon 5867 | -10/Subcaves | Found SUBCON Basin 6135 | -10/Subcaves | Entered Recycling 6135 | -7/Recycling | Accompanied by 8 allies 6136 | -7/Recycling | Joined Warlord attack on 0b10 via Recycling 6476 | -7/Recycling | Scanned before Scraplab entrance 6499 | -7/Recycling | Entered Scraplab 6848 | -7/Recycling | Discovered new exit (range 16) 7218 | -7/Recycling | Discovered new exit (range 3) 7249 | -7/Recycling | Entered Scraptown 7249 | -7/Scraptown | Accompanied by 7 allies 7364 | -7/Scraptown | Heard Great Nut preacher, LISTEN AND RECITE! 7535 | -7/Scraptown | Delivered V3-11A's Pendant to T0-NE2 in exchange for information 7868 | -7/Scraptown | Scanned Subdweller tech in exchange for log data 7871 | -7/Scraptown | Learned Research security intel 7872 | -7/Scraptown | Learned location of 1 exit from Factory 7896 | -7/Scraptown | Discovered new exit (range 5) 8047 | -7/Scraptown | Visited Spacefarers 8061 | -7/Scraptown | Visited The Evicted 8077 | -7/Scraptown | Visited Cyclists 8103 | -7/Scraptown | Visited Symbiants 8140 | -7/Scraptown | Visited Shadow of the Wyrm 8208 | -7/Scraptown | Visited Fellowship of the Rings 8236 | -7/Scraptown | Visited CPS Storage 8408 | -7/Scraptown | Visited UFD Registry 8408 | -7/Scraptown | Registered with UFD as "Thermochaser" 8445 | -7/Scraptown | Visited LU-1G1's Boring Crew 8506 | -7/Scraptown | Visited Curators Association 8567 | -7/Scraptown | Visited Derelict Rescue Squad 8577 | -7/Scraptown | Found DRS Beacon 8746 | -7/Scraptown | Visited Scrap Suit Storage 8772 | -7/Scraptown | Visited Supply Room 8805 | -7/Scraptown | Visited Infowarlord's Domain 8844 | -7/Scraptown | Visited Modified Component R&D 8895 | -7/Scraptown | Visited Research Penetration Think Tank 8935 | -7/Scraptown | Visited A0-MCA Data Center 8964 | -7/Scraptown | Visited Science Guys 9103 | -7/Scraptown | Entered Cyclist Reading Room 9256 | -7/Scraptown | Given a B+ rating by A0-MCA 9260 | -7/Scraptown | Found A0-MCA's Component Scanner 9341 | -7/Scraptown | Discovered new exit (range 5) 9910 | -7/Scraptown | Tech Extrapolator generated special schematic: Machine Rigger 10332 | -7/Scraptown | Tech Extrapolator generated special schematic: Deep Structural Scanner 11308 | -7/Scraptown | Found Exp. Sensor Array 11473 | -7/Scraptown | Met Optimus 11473 | -7/Scraptown | Accepted into 0bPrime 11873 | -7/Scraptown | Civil war broke out across Scraptown 11881 | -7/Scraptown | Found Prototype Special Weapon 11881 | -7/Scraptown | Identified LU-1G1's Laser Shovel 11996 | -7/Scraptown | Lost 6 allies 12000 | -7/Scraptown | Found PL-3XN's Ring of Power 12024 | -7/Scraptown | Optimus destroyed in the chaos of civil war 12038 | -7/Scraptown | Core integrity fell below 50% 12047 | -7/Scraptown | Core integrity fell below 20% 12047 | -7/Scraptown | Destroyed by J5-7IY(j) with Overtuned Pulse Rifle Last Messages --------------- 12022_ LU-1G1's Laser Shovel disintegrates Wall. 12024_ ANNOUNCEMENT: The traitor Optimus has been dealt with. Put down any remaining collaborators. 12034_ Hrd. Light Armor Plating destroyed. 12035_ Temporary Utility slot lost. 12036_ LU-1G1's Laser Shovel disintegrates Wall. 12037_ Critical hit (Burn: +50). 12038_ LU-1G1's Laser Shovel disintegrates Earth. 12039_ LU-1G1's Laser Shovel disintegrates Wall. 12042_ Mni. Grenade Launcher destroyed. 12042_ Critical hit (Burn: +37). 12043_ Slammed into Z2-JF5(j). 12043_ ZE-4CN(j) destroyed. 12044_ Com. Wheel destroyed. 12044_ AQ-7XN(j) IFF system glitched. 12044_ Adv. Assault Cannon destroyed. 12044_ Critical hit (Burn: +50). 12045_ Ovr. Medium Treads suddenly begins malfunctioning. 12047_ AQ-7XN(j) destroyed. 12047_ Dropped Lrg. Storage Unit. Map ----- +----------------------------------------------------+ | | | | | | | | | | | | | | | | | | | | | | | | | | | | | ?????????????????????????????????????????????????? | | ????????????????#########????????????????????????? | | ????????????????#""%!! ##???????????????????????? | | #???????????????#"